fUSD/lending_fUSD_20250606
["ID","MTS","AMOUNT","RATE_DAILY","PERIOD"]
[364637312,1749169884902,-2088.12,0.0003115,7]
[364637313,1749169884912,-2429.04,0.0003115,7]
[364637314,1749169884922,-2148.42,0.0003115,7]
[364637315,1749169884932,-550.16,0.0003115,2]
[364637316,1749169884941,-1006.19,0.0003115,7]
[364637317,1749169884951,-4057.88,0.0003115,7]
[364637318,1749169884960,-75398.65,0.0003115,7]
[364637319,1749169884970,-831.38,0.0003115,7]
[364637320,1749169884979,-916.23,0.0003115,7]
[364637321,1749169884989,-1158.74,0.0003115,7]
[364637322,1749169884998,-1256.48,0.0003115,7]
[364637323,1749169885008,-750.6,0.0003115,7]
[364637324,1749169885018,-1384.3,0.0003115,7]
[364637325,1749169885028,-657.45,0.0003115,7]
[364637326,1749169885037,-845.15,0.0003115,7]
[364637327,1749169885047,-1850.13,0.0003115,7]
[364637328,1749169885056,-3678.84,0.0003115,7]
[364637329,1749169885066,-480.0,0.0003115,7]
[364637330,1749169885075,-1543.72,0.0003115,7]
[364637331,1749169885085,-940.41,0.0003115,7]
[364637332,1749169885094,-480.0,0.0003115,7]
[364637333,1749169885104,-480.0,0.0003115,7]
[364637334,1749169885114,-480.0,0.0003115,7]
[364637335,1749169885123,-2140.61,0.0003115,7]
[364637336,1749169885133,-884.63,0.0003115,7]
[364637337,1749169885142,-676.31,0.0003115,7]
[364637338,1749169885152,-360.0,0.0003115,7]
[364637339,1749169885161,-4494.31,0.0003115,7]
[364637340,1749169885171,-480.0,0.0003115,7]
[364637341,1749169885180,-1236.81,0.0003115,7]
[364637342,1749169885189,-480.0,0.0003115,7]
[364637343,1749169885199,-303.54,0.00031154,2]
[364637344,1749169885208,-150.0,0.00031155,2]
[364637345,1749169885218,-150.0,0.00031156,2]
[364637346,1749169885227,-150.0,0.00031157,2]
[364637347,1749169885236,-300.0,0.00031157,2]
[364637348,1749169885245,-1003.8144,0.00031158,3]
[364637349,1749169885254,-2000.0,0.00031158,3]
[364637350,1749169885265,-150.0,0.00031162,2]
[364637351,1749169885274,-151.0,0.00031163,7]
[364637352,1749169885284,-151.0,0.00031163,7]
[364637353,1749169885295,-151.0,0.00031163,7]
[364637354,1749169885304,-151.0,0.00031163,7]
[364637355,1749169885315,-151.0,0.00031163,7]
[364637356,1749169885324,-151.0,0.00031163,7]
[364637357,1749169885334,-151.0,0.00031163,7]
[364637358,1749169885346,-151.0,0.00031163,7]
[364637359,1749169885356,-151.0,0.00031163,7]
[364637360,1749169885366,-151.0,0.00031163,7]
[364637361,1749169885376,-151.0,0.00031163,7]
[364637362,1749169885386,-303.73,0.00031163,2]
[364637363,1749169885395,-303.07,0.00031163,2]
[364637364,1749169885404,-305.43,0.00031164,2]
[364637365,1749169885413,-150.0,0.00031165,2]
[364637366,1749169885426,-150.0,0.00031169,2]
[364637367,1749169885436,-150.0,0.00031173,2]
[364637368,1749169885446,-150.0,0.00031174,2]
[364637369,1749169885456,-500.0,0.00031177,7]
[364637370,1749169885467,-500.0,0.00031177,2]
[364637371,1749169885477,-500.0,0.00031177,2]
[364637372,1749169885487,-500.0,0.00031177,2]
[364637373,1749169885496,-503.0,0.00031177,2]
[364637374,1749169885506,-200.0,0.00031179,2]
[364637375,1749169885515,-150.0,0.00031181,2]
[364637376,1749169885524,-150.0,0.00031191,2]
[364637377,1749169885709,-150.0,0.00031193,2]
[364637378,1749169885719,-150.0,0.00031194,2]
[364637379,1749169885729,-500.0,0.00031204,7]
[364637380,1749169885739,-500.0,0.00031204,2]
[364637381,1749169885748,-500.0,0.00031204,2]
[364637382,1749169885759,-500.0,0.00031204,2]
[364637383,1749169885768,-503.0,0.00031204,2]
[364637384,1749169885777,-492.26277498,0.0003121,2]
[364637385,1749169885786,-150.0,0.00031215,2]
[364637386,1749169885795,-150.0,0.00031221,2]
[364637387,1749169885805,-150.0,0.00031226,2]
[364637388,1749169885815,-150.0,0.00031227,2]
[364637389,1749169885824,-500.0,0.00031232,7]
[364637390,1749169885833,-500.0,0.00031232,2]
[364637391,1749169885843,-500.0,0.00031232,2]
[364637392,1749169885853,-500.0,0.00031232,2]
[364637393,1749169885863,-503.0,0.00031232,2]
[364637394,1749169885872,-151.0,0.00031232,2]
[364637395,1749169885882,-150.0,0.00031235,2]
[364637396,1749169885891,-150.0,0.00031247,2]
[364637397,1749169885900,-150.0,0.00031249,2]
[364637398,1749169885910,-150.0,0.00031249,2]
[364637399,1749169885919,-150.0,0.00031253,2]
[364637400,1749169885929,-500.0,0.00031259,7]
[364637401,1749169885938,-500.0,0.00031259,2]
[364637402,1749169885948,-500.0,0.00031259,2]
[364637403,1749169885957,-500.0,0.00031259,2]
[364637404,1749169885967,-503.0,0.00031259,2]
[364637405,1749169885977,-150.0,0.00031259,2]
[364637406,1749169885986,-150.0,0.00031261,2]
[364637407,1749169885995,-150.0,0.00031268,2]
[364637408,1749169886005,-520.55430808,0.00031268,5]
[364637409,1749169886015,-178.03364594,0.0003127,2]
[364637410,1749169886024,-651.43027496,0.0003127,2]
[364637411,1749169886033,-400.0,0.0003127,2]
[364637412,1749169886044,-150.0,0.00031276,2]
[364637413,1749169886053,-168.02529908,0.00031282,2]
[364637414,1749169886064,-150.0,0.00031282,2]
[364637415,1749169886074,-150.0,0.00031282,2]
[364637416,1749169886083,-150.0,0.00031284,2]
[364637417,1749169886092,-150.0,0.00031284,2]
[364637418,1749169886102,-150.0,0.00031285,2]
[364637419,1749169886111,-500.0,0.00031286,7]
[364637420,1749169886121,-500.0,0.00031286,2]
[364637421,1749169886131,-500.0,0.00031286,2]
[364637422,1749169886140,-291.83848964,0.00031286,2]
[364637423,1749169886150,-503.0,0.00031286,2]
[364637424,1749169886159,-250.573643,0.00031287,7]
[364637425,1749169886168,-250.573643,0.00031287,7]
[364637426,1749169886178,-199.874455,0.00031287,7]
[364637427,1749169886187,-199.874455,0.00031287,7]
[364637428,1749169886197,-150.0,0.00031288,2]
[364637429,1749169886206,-150.0,0.000313,2]
[364637430,1749169886217,-159.0,0.000313,24]
[364637431,1749169886227,-300.0,0.00031308,2]
[364637432,1749169886236,-152.0,0.00031309,7]
[364637433,1749169886246,-357.0,0.0003131,2]
[364637434,1749169886255,-211.0,0.0003131,30]
[364637435,1749169886265,-204.0,0.0003131,2]
[364637436,1749169886274,-204.0,0.0003131,2]
[364637437,1749169886284,-206.0,0.0003131,2]
[364637438,1749169886294,-500.0,0.00031314,7]
[364637439,1749169886303,-500.0,0.00031314,2]
[364637440,1749169886314,-500.0,0.00031314,2]
[364637441,1749169886324,-503.0,0.00031314,2]
[364637442,1749169886333,-10430.51,0.00031314,7]
[364637443,1749169886346,-151.0,0.00031314,7]
[364637444,1749169886356,-151.0,0.00031314,7]
[364637445,1749169886366,-571.14,0.00031314,7]
[364637446,1749169886375,-571.14,0.00031314,7]
[364637447,1749169886389,-571.14,0.00031314,7]
[364637448,1749169886398,-571.14,0.00031314,7]
[364637449,1749169886408,-571.33931035,0.00031314,7]
[364637450,1749169886417,-151.0,0.00031315,7]
[364637451,1749169886428,-151.0,0.00031315,7]
[364637452,1749169886438,-151.0,0.00031315,7]
[364637453,1749169886447,-151.0,0.00031315,7]
[364637454,1749169886457,-151.0,0.00031315,7]
[364637455,1749169886468,-151.0,0.00031315,7]
[364637456,1749169886477,-151.0,0.00031315,7]
[364637457,1749169886487,-151.0,0.00031315,7]
[364637458,1749169886496,-228.785948,0.00031315,7]
[364637459,1749169886505,-151.0,0.00031315,7]
[364637460,1749169886515,-151.0,0.00031315,7]
[364637461,1749169886524,-151.0,0.00031315,7]
[364637462,1749169886534,-151.0,0.00031315,7]
[364637463,1749169886543,-151.0,0.00031315,7]
[364637464,1749169886553,-151.0,0.00031315,7]
[364637465,1749169886562,-151.0,0.00031315,7]
[364637466,1749169886573,-151.0,0.00031315,7]
[364637467,1749169886582,-151.0,0.00031315,7]
[364637468,1749169886592,-151.0,0.00031315,7]
[364637469,1749169886601,-151.0,0.00031315,7]
[364637470,1749169886611,-151.0,0.00031315,7]
[364637471,1749169886621,-1423.442674,0.00031315,7]
[364637472,1749169886630,-1288.57938,0.00031315,7]
[364637473,1749169886639,-268.077337,0.00031315,7]
[364637474,1749169886649,-525.54,0.00031315,7]
[364637475,1749169886659,-268.077337,0.00031315,7]
[364637476,1749169886669,-480.0,0.00031315,7]
[364637477,1749169886678,-151.0,0.00031315,7]
[364637478,1749169886686,-151.0,0.00031315,7]
[364637479,1749169886695,-480.0,0.00031315,7]
[364637480,1749169886706,-480.0,0.00031315,7]
[364637481,1749169886717,-151.0,0.00031315,7]
[364637482,1749169886727,-480.0,0.00031315,7]
[364637483,1749169886736,-480.0,0.00031315,7]
[364637484,1749169886746,-480.0,0.00031315,7]
[364637485,1749169886755,-577.19,0.00031315,7]
[364637486,1749169886765,-480.0,0.00031315,7]
[364637487,1749169886774,-480.0,0.00031315,7]
[364637488,1749169886784,-480.0,0.00031315,7]
[364637489,1749169886794,-480.0,0.00031315,7]
[364637490,1749169886803,-563.14343956,0.00031315,7]
[364637491,1749169886812,-543.3,0.00031315,7]
[364637492,1749169886822,-480.0,0.00031315,7]
[364637493,1749169886831,-560.45,0.00031315,7]
[364637494,1749169886840,-480.0,0.00031315,7]
[364637495,1749169886849,-480.0,0.00031315,7]
[364637496,1749169886858,-480.0,0.00031315,7]
[364637497,1749169886870,-480.0,0.00031315,7]
[364637498,1749169886891,-480.0,0.00031315,7]
[364637499,1749169886907,-480.0,0.00031315,7]
[364637500,1749169886927,-624.38,0.00031315,30]
[364637501,1749169886946,-480.0,0.00031315,7]
[364637502,1749169886964,-564.7,0.00031315,7]
[364637503,1749169886983,-668.56,0.00031315,7]
[364637504,1749169887003,-480.0,0.00031315,7]
[364637505,1749169887024,-480.0,0.00031315,7]
[364637506,1749169887041,-480.0,0.00031315,7]
[364637507,1749169887061,-480.0,0.00031315,7]
[364637508,1749169887077,-480.0,0.00031315,7]
[364637509,1749169887090,-521.44,0.00031315,7]
[364637510,1749169887109,-177.77549949,0.00031315,7]
[364637511,1749169887122,-480.0,0.00031315,7]
[364637512,1749169887140,-1135.23,0.00031315,7]
[364637513,1749169887154,-1566.98,0.00031315,7]
[364637514,1749169887169,-480.0,0.00031315,7]
[364637515,1749169887185,-850.57,0.00031315,7]
[364637516,1749169887199,-480.0,0.00031315,7]
[364637517,1749169887217,-1000.98,0.00031315,7]
[364637518,1749169887231,-731.2,0.00031315,7]
[364637519,1749169887247,-791.42,0.00031315,7]
[364637520,1749169887262,-647.48,0.00031315,7]
[364637521,1749169887277,-669.94,0.00031315,7]
[364637522,1749169887292,-1235.47,0.00031315,7]
[364637523,1749169887307,-785.34,0.00031315,7]
[364637524,1749169887322,-519.02,0.00031315,7]
[364637525,1749169887337,-1309.06,0.00031315,7]
[364637526,1749169887356,-921.0,0.00031315,7]
[364637527,1749169887372,-1017.54,0.00031315,7]
[364637528,1749169887386,-1318.19,0.00031315,7]
[364637529,1749169887402,-480.0,0.00031315,7]
[364637530,1749169887418,-642.93,0.00031315,7]
[364637531,1749169887435,-480.0,0.00031315,7]
[364637532,1749169887449,-571.7,0.00031315,7]
[364637533,1749169887466,-638.63,0.00031315,7]
[364637534,1749169887482,-480.0,0.00031315,7]
[364637535,1749169887497,-648.12,0.00031315,7]
[364637536,1749169887511,-480.0,0.00031315,7]
[364637537,1749169887527,-934.99,0.00031315,7]
[364637538,1749169887543,-480.0,0.00031315,7]
[364637539,1749169887558,-480.0,0.00031315,7]
[364637540,1749169887574,-646.29,0.00031315,7]
[364637541,1749169887588,-515.87,0.00031315,7]
[364637542,1749169887603,-480.0,0.00031315,7]
[364637543,1749169887618,-251.03919658,0.00031315,7]
[364637544,1749169887633,-604.81,0.00031315,7]
[364637545,1749169887648,-480.0,0.00031315,7]
[364637546,1749169887664,-480.0,0.00031315,7]
[364637547,1749169887679,-480.0,0.00031315,7]
[364637548,1749169887694,-977.06,0.00031315,7]
[364637549,1749169887708,-480.0,0.00031315,7]
[364637550,1749169887729,-598.09,0.00031315,7]
[364637551,1749169887746,-542.37,0.00031315,7]
[364637552,1749169887764,-984.46,0.00031315,7]
[364637553,1749169887788,-609.89,0.00031315,7]
[364637554,1749169887804,-480.0,0.00031315,7]
[364637555,1749169887821,-204.53779909,0.00031315,7]
[364637556,1749169887837,-1197.76,0.00031315,7]
[364637557,1749169887853,-480.0,0.00031315,7]
[364637558,1749169887868,-480.0,0.00031315,7]
[364637559,1749169887884,-163.68,0.00031315,7]
[364637560,1749169887900,-618.79,0.00031315,7]
[364637561,1749169887916,-633.04,0.00031315,7]
[364637562,1749169887932,-480.0,0.00031315,7]
[364637563,1749169887946,-801.52,0.00031315,7]
[364637564,1749169887962,-480.0,0.00031315,7]
[364637565,1749169887977,-480.0,0.00031315,7]
[364637566,1749169887992,-998.49,0.00031315,7]
[364637567,1749169888007,-480.0,0.00031315,7]
[364637568,1749169888023,-480.0,0.00031315,7]
[364637569,1749169888038,-751.3,0.00031315,7]
[364637570,1749169888054,-480.0,0.00031315,7]
[364637571,1749169888069,-480.0,0.00031315,7]
[364637572,1749169888084,-976.73,0.00031315,7]
[364637573,1749169888100,-480.0,0.00031315,7]
[364637574,1749169888115,-560.65,0.00031315,7]
[364637575,1749169888129,-624.38,0.00031315,7]
[364637576,1749169888144,-480.0,0.00031315,7]
[364637577,1749169888160,-567.73,0.00031315,7]
[364637578,1749169888175,-1477.61,0.00031315,7]
[364637579,1749169888190,-480.0,0.00031315,7]
[364637580,1749169888203,-802.74,0.00031315,7]
[364637581,1749169888219,-480.0,0.00031315,7]
[364637582,1749169888234,-1744.01,0.00031315,7]
[364637583,1749169888249,-763.22,0.00031315,7]
[364637584,1749169888263,-538.96,0.00031315,7]
[364637585,1749169888279,-480.0,0.00031315,7]
[364637586,1749169888295,-480.0,0.00031315,7]
[364637587,1749169888311,-151.0,0.00031315,7]
[364637588,1749169888325,-974.45,0.00031315,7]
[364637589,1749169888340,-824.48,0.00031315,7]
[364637590,1749169888358,-480.0,0.00031315,7]
[364637591,1749169888369,-480.0,0.00031315,7]
[364637592,1749169888379,-965.87,0.00031315,7]
[364637593,1749169888389,-480.0,0.00031315,7]
[364637594,1749169888398,-643.57,0.00031315,7]
[364637595,1749169888407,-895.07,0.00031315,7]
[364637596,1749169888417,-151.0,0.00031315,7]
[364637597,1749169888428,-162.679164,0.00031315,7]
[364637598,1749169888438,-1530.67,0.00031315,7]
[364637599,1749169888447,-151.0,0.00031315,7]
[364637600,1749169888456,-630.12,0.00031315,7]
[364637601,1749169888467,-1015.68,0.00031315,7]
[364637602,1749169888477,-4473.44,0.00031315,7]
[364637603,1749169888487,-997.24,0.00031315,7]
[364637604,1749169888496,-400.337502,0.00031315,7]
[364637605,1749169888507,-611.76,0.00031315,7]
[364637606,1749169888516,-714.32,0.00031315,7]
[364637607,1749169888525,-1465.75,0.00031315,7]
[364637608,1749169888536,-792.82,0.00031315,7]
[364637609,1749169888545,-400.337502,0.00031315,7]
[364637610,1749169888554,-239.187392,0.00031315,7]
[364637611,1749169888564,-5664.36,0.00031315,7]
[364637612,1749169888574,-1067.54,0.00031315,7]
[364637613,1749169888924,-1841.39,0.00031315,7]
[364637614,1749169888947,-694.91,0.00031315,7]
[364637615,1749169888975,-634.95,0.00031315,7]
[364637616,1749169888990,-10624.81,0.00031315,7]
[364637617,1749169889000,-5122.53,0.00031315,7]
[364637618,1749169889010,-1930.66,0.00031315,7]
[364637619,1749169889019,-480.0,0.00031315,7]
[364637620,1749169889029,-994.09,0.00031315,7]
[364637621,1749169889039,-1762.93,0.00031315,7]
[364637622,1749169889048,-3222.49,0.00031315,7]
[364637623,1749169889059,-678.81,0.00031315,7]
[364637624,1749169889069,-480.0,0.00031315,7]
[364637625,1749169889080,-480.0,0.00031315,7]
[364637626,1749169889090,-841.12,0.00031315,7]
[364637627,1749169889100,-1808.93,0.00031315,7]
[364637628,1749169889110,-281.28925855,0.00031315,7]
[364637629,1749169889120,-2980.01,0.00031315,7]
[364637630,1749169889130,-912.41,0.00031315,7]
[364637631,1749169889139,-1568.54,0.00031315,7]
[364637632,1749169889149,-499.22,0.00031315,7]
[364637633,1749169889158,-838.35,0.00031315,7]
[364637634,1749169889168,-726.16,0.00031315,7]
[364637635,1749169889178,-310.04258812,0.00031315,7]
[364637636,1749169889189,-252.968101,0.00031315,7]
[364637637,1749169889199,-480.0,0.00031315,7]
[364637638,1749169889209,-480.0,0.00031315,7]
[364637639,1749169889223,-1969.03,0.00031315,7]
[364637640,1749169889233,-8804.99,0.00031315,7]
[364637641,1749169889243,-2057.51,0.00031315,7]
[364637642,1749169889254,-939.86,0.00031315,7]
[364637643,1749169889263,-150.0,0.00031315,2]
[364637644,1749169889274,-482.38,0.00031315,7]
[364637645,1749169889284,-483.57,0.00031315,7]
[364637646,1749169889294,-4422.6,0.00031315,7]
[364637647,1749169889304,-480.0,0.00031315,7]
[364637648,1749169889314,-480.0,0.00031315,7]
[364637649,1749169889323,-1211.33,0.00031315,7]
[364637650,1749169889333,-1514.33,0.00031315,7]
[364637651,1749169889343,-3546.61,0.00031315,7]
[364637652,1749169889356,-10597.93639296,0.00031315,2]
[364637653,1749169889366,-155.912852,0.00031315,7]
[364637654,1749169889376,-1699.38,0.00031315,7]
[364637655,1749169889386,-695.05,0.00031315,7]
[364637656,1749169889396,-1000.0,0.00031315,7]
[364637657,1749169889406,-1292.48,0.00031315,7]
[364637658,1749169889416,-435.55496837,0.00031315,7]
[364637659,1749169889428,-151.0,0.00031315,7]
[364637660,1749169889437,-1270.03,0.00031315,2]
[364637661,1749169889447,-783.86,0.00031315,7]
[364637662,1749169889457,-1448.57,0.00031315,7]
[364637663,1749169889469,-480.0,0.00031315,7]
[364637664,1749169889479,-1405.14,0.00031315,7]
[364637665,1749169889489,-955.4,0.00031315,7]
[364637666,1749169889499,-643.05,0.00031315,7]
[364637667,1749169889509,-1230.15,0.00031315,7]
[364637668,1749169889519,-1160.492535,0.00031315,7]
[364637669,1749169889529,-1097.14,0.00031315,7]
[364637670,1749169889539,-1755.69,0.00031315,7]
[364637671,1749169889549,-1023.18,0.00031315,7]
[364637672,1749169889559,-173.555393,0.00031315,7]
[364637673,1749169889569,-1239.18,0.00031315,7]
[364637674,1749169889579,-1160.492535,0.00031315,7]
[364637675,1749169889589,-173.555393,0.00031315,7]
[364637676,1749169889599,-480.0,0.00031315,7]
[364637677,1749169889609,-3590.07,0.00031315,7]
[364637678,1749169889619,-530.006421,0.00031315,7]
[364637679,1749169889629,-502.7,0.00031315,7]
[364637680,1749169889639,-2047.6,0.00031315,7]
[364637681,1749169889648,-480.0,0.00031315,7]
[364637682,1749169889657,-530.006421,0.00031315,7]
[364637683,1749169889668,-2664.01,0.00031315,7]
[364637684,1749169889678,-2108.29,0.00031315,7]
[364637685,1749169889688,-1756.48,0.00031315,7]
[364637686,1749169889697,-155.606155,0.00031315,7]
[364637687,1749169889707,-2786.75,0.00031315,7]
[364637688,1749169889719,-480.0,0.00031315,7]
[364637689,1749169889728,-992.87,0.00031315,7]
[364637690,1749169889738,-480.0,0.00031315,7]
[364637691,1749169889748,-3552.57,0.00031315,7]
[364637692,1749169889757,-536.2,0.00031315,7]
[364637693,1749169889767,-480.0,0.00031315,7]
[364637694,1749169889776,-480.0,0.00031315,7]
[364637695,1749169889786,-1966.23,0.00031315,7]
[364637696,1749169889795,-1530.82,0.00031315,7]
[364637697,1749169889804,-5095.06,0.00031315,7]
[364637698,1749169889814,-157.422861,0.00031315,7]
[364637699,1749169889823,-610.68,0.00031315,7]
[364637700,1749169889833,-1252.98,0.00031315,7]
[364637701,1749169889842,-151.0,0.00031315,7]
[364637702,1749169889852,-1013.14,0.00031315,7]
[364637703,1749169889860,-151.0,0.00031315,7]
[364637704,1749169889870,-1721.74,0.00031315,7]
[364637705,1749169889879,-1598.04,0.00031315,7]
[364637706,1749169889888,-162.767923,0.00031315,7]
[364637707,1749169889898,-157.422861,0.00031315,7]
[364637708,1749169889907,-927.5,0.00031315,7]
[364637709,1749169889916,-1149.65,0.00031315,7]
[364637710,1749169889925,-1166.73,0.00031315,7]
[364637711,1749169889934,-480.0,0.00031315,7]
[364637712,1749169889943,-1043.06,0.00031315,7]
[364637713,1749169889953,-3952.97,0.00031315,7]
[364637714,1749169889963,-667.22,0.00031315,7]
[364637715,1749169889974,-635.73,0.00031315,7]
[364637716,1749169889983,-582.95,0.00031315,7]
[364637717,1749169889993,-1842.83,0.00031315,7]
[364637718,1749169890003,-2151.06,0.00031315,7]
[364637719,1749169890012,-151.0,0.00031315,7]
[364637720,1749169890023,-480.0,0.00031315,7]
[364637721,1749169890033,-480.0,0.00031315,7]
[364637722,1749169890043,-5721.92,0.00031315,7]
[364637723,1749169890052,-1757.26,0.00031315,7]
[364637724,1749169890062,-151.0,0.00031315,7]
[364637725,1749169890072,-4358.7,0.00031315,7]
[364637726,1749169890082,-1283.13,0.00031315,7]
[364637727,1749169890092,-1954.11,0.00031315,7]
[364637728,1749169890103,-796.57,0.00031315,7]
[364637729,1749169890114,-1753.46,0.00031315,7]
[364637730,1749169890123,-1790.89,0.00031315,7]
[364637731,1749169890134,-883.43,0.00031315,7]
[364637732,1749169890144,-480.0,0.00031315,7]
[364637733,1749169890153,-1308.85,0.00031315,7]
[364637734,1749169890163,-151.0,0.00031315,7]
[364637735,1749169890172,-480.0,0.00031315,7]
[364637736,1749169890181,-480.0,0.00031315,7]
[364637737,1749169890191,-857.15,0.00031315,7]
[364637738,1749169890200,-1050.99,0.00031315,7]
[364637739,1749169890209,-656.07,0.00031315,7]
[364637740,1749169890220,-1471.58,0.00031315,7]
[364637741,1749169890229,-907.68,0.00031315,7]
[364637742,1749169890238,-983.31,0.00031315,7]
[364637743,1749169890248,-2471.56,0.00031315,7]
[364637744,1749169890257,-1842.14,0.00031315,7]
[364637745,1749169890266,-480.0,0.00031315,7]
[364637746,1749169890276,-727.341524,0.00031315,7]
[364637747,1749169890285,-152.071432,0.00031315,7]
[364637748,1749169890295,-480.0,0.00031315,7]
[364637749,1749169890304,-480.0,0.00031315,7]
[364637750,1749169890314,-480.0,0.00031315,7]
[364637751,1749169890323,-1021.3,0.00031315,7]
[364637752,1749169890332,-480.0,0.00031315,7]
[364637753,1749169890342,-2266.2,0.00031315,7]
[364637754,1749169890355,-480.0,0.00031315,7]
[364637755,1749169890364,-727.341524,0.00031315,7]
[364637756,1749169890373,-152.071432,0.00031315,7]
[364637757,1749169890382,-757.74,0.00031315,7]
[364637758,1749169890392,-480.0,0.00031315,7]
[364637759,1749169890402,-5199.96,0.00031315,7]
[364637760,1749169890411,-667.5,0.00031315,7]
[364637761,1749169890420,-721.17,0.00031315,7]
[364637762,1749169890431,-1996.44,0.00031315,7]
[364637763,1749169890442,-1003.44,0.00031315,7]
[364637764,1749169890452,-1106.3,0.00031315,7]
[364637765,1749169890463,-162.61792,0.00031315,7]
[364637766,1749169890472,-2701.39,0.00031315,7]
[364637767,1749169890482,-664.15,0.00031315,7]
[364637768,1749169890492,-480.0,0.00031315,7]
[364637769,1749169890501,-480.0,0.00031315,7]
[364637770,1749169890511,-1202.9,0.00031315,7]
[364637771,1749169890520,-1543.58,0.00031315,7]
[364637772,1749169890530,-562.27,0.00031315,7]
[364637773,1749169890540,-587.01,0.00031315,7]
[364637774,1749169890550,-480.0,0.00031315,7]
[364637775,1749169890559,-12056.81,0.00031315,7]
[364637776,1749169890569,-480.0,0.00031315,7]
[364637777,1749169890579,-17881.25,0.00031315,7]
[364637778,1749169890588,-725.97,0.00031315,7]
[364637779,1749169890598,-783.68,0.00031315,7]
[364637780,1749169890607,-523.31,0.00031315,7]
[364637781,1749169890617,-178.501279,0.00031315,7]
[364637782,1749169890626,-4166.34,0.00031315,7]
[364637783,1749169890636,-492.59,0.00031315,7]
[364637784,1749169890646,-178.501279,0.00031315,7]
[364637785,1749169890655,-2673.43,0.00031315,7]
[364637786,1749169890664,-480.0,0.00031315,7]
[364637787,1749169890673,-731.1,0.00031315,7]
[364637788,1749169890683,-480.0,0.00031315,7]
[364637789,1749169890692,-10488.24,0.00031315,7]
[364637790,1749169890702,-1105.24,0.00031315,7]
[364637791,1749169890713,-2200.46,0.00031315,7]
[364637792,1749169890723,-496.74,0.00031315,7]
[364637793,1749169890732,-894.07,0.00031315,7]
[364637794,1749169890741,-3195.01,0.00031315,7]
[364637795,1749169890751,-858.65,0.00031315,7]
[364637796,1749169890760,-777.87,0.00031315,7]
[364637797,1749169890769,-480.0,0.00031315,7]
[364637798,1749169890778,-480.0,0.00031315,7]
[364637799,1749169890788,-882.75,0.00031315,7]
[364637800,1749169890797,-20765.5,0.00031315,7]
[364637801,1749169890806,-158.164587,0.00031315,7]
[364637802,1749169890815,-5143.42,0.00031315,7]
[364637803,1749169890824,-672.27,0.00031315,7]
[364637804,1749169890833,-151.0,0.00031315,7]
[364637805,1749169890843,-480.0,0.00031315,7]
[364637806,1749169890852,-480.0,0.00031315,7]
[364637807,1749169890861,-628.58,0.00031315,7]
[364637808,1749169890870,-480.0,0.00031315,7]
[364637809,1749169890879,-585.38,0.00031315,7]
[364637810,1749169890889,-266.915365,0.00031315,7]
[364637811,1749169890898,-2136.76,0.00031315,7]